bitfinex-derivatives/quotes_SOLF0:USTF0_20251002
["timestamp","ask_amount","ask_price","bid_price","bid_amount"]
[1759371075745,1.73132198,221.91,221.83,9.59132198]
[1759371077649,11.9136,221.92,221.83,7.86]
[1759371077845,1.73132198,221.9,221.83,7.86]
[1759371080953,1.73132198,221.9,221.84,1.73132198]
[1759371082856,1.73132198,221.91,221.84,1.73132198]
[1759371084853,7.27,221.9,221.83,7.86]
[1759371085058,7.27,221.9,221.83,9.59132198]
[1759371089163,7.27,221.9,221.83,13.64642198]
[1759371089564,7.27,221.9,221.83,9.59132198]
[1759371090466,9.00132198,221.91,221.84,1.73132198]
[1759371092162,7.27,221.91,221.84,1.73132198]
[1759371092364,7.27,221.92,221.86,1.73132198]
[1759371092863,1.73132198,221.91,221.85,1.73132198]
[1759371093063,1.73132198,221.91,221.84,7.49]
[1759371093264,1.73132198,221.91,221.84,9.22132198]
[1759371095464,1.73132198,221.91,221.84,7.49]
[1759371095670,1.73132198,221.91,221.84,9.22132198]
[1759371096671,9.00132198,221.92,221.86,7.49]
[1759371098169,9.00132198,221.92,221.86,9.22132198]
[1759371098170,7.27,221.92,221.86,9.22132198]
[1759371098367,1.73132198,221.94,221.86,13.27582198]
[1759371098873,9.00132198,221.95,221.88,1.73132198]
[1759371100272,7.27,221.95,221.88,1.73132198]
[1759371101070,7.27,221.95,221.9,1.73132198]
[1759371101271,7.27,221.95,221.89,7.49]
[1759371101470,7.27,221.95,221.91,7.49]
[1759371101668,10.37803688,222.0,221.92,4.0534]
[1759371101873,7.27,222.0,221.93,7.49]
[1759371103370,3.108771,222.02,221.95,7.49]
[1759371103565,7.27,222.04,221.96,1.73132198]
[1759371103770,7.27,222.04,221.97,7.49]
[1759371104073,7.27,222.07,222.0,1.73132198]
[1759371104778,7.27,222.07,222.01,7.49]
[1759371105875,1.73132198,222.09,222.01,9.22132198]
[1759371106276,9.00132198,222.09,222.01,9.22132198]
[1759371106870,9.00132198,222.09,222.01,7.49]
[1759371107076,9.00132198,222.09,222.01,9.22132198]
[1759371108272,1.73132198,222.12,222.04,7.49]
[1759371108476,7.27,222.13,222.04,7.49]
[1759371108676,7.27,222.13,222.05,1.73132198]
[1759371108677,1.73132198,222.12,222.05,1.73132198]
[1759371110681,1.73132198,222.1,222.01,1.73132198]
[1759371110881,7.27,222.09,222.01,1.73132198]
[1759371114684,76.37538246,222.15,222.03,1.73132198]
[1759371114893,76.37538246,222.15,222.0,4.0519]
[1759371114894,7.71,222.18,222.0,7.71]
[1759371115184,1.73132198,222.17,222.1,1.73132198]
[1759371115488,7.71,222.18,222.1,1.73132198]
[1759371116284,7.71,222.18,222.11,1.73132198]
[1759371116486,4.0495,222.14,222.11,1.73132198]
[1759371116886,7.71,222.13,222.11,1.73132198]
[1759371117083,4.0495,222.14,222.11,1.73132198]
[1759371117283,4.0498,222.12,222.03,7.71]
[1759371117491,7.71,222.11,222.08,1.73132198]
[1759371117892,7.71,222.15,222.08,1.73132198]
[1759371118692,11.7594,222.15,222.08,1.73132198]
[1759371118890,7.71,222.15,222.08,1.73132198]
[1759371120396,4.0495,222.14,222.08,1.73132198]
[1759371120791,7.71,222.13,222.08,1.73132198]
[1759371120992,11.7595,222.14,222.08,1.73132198]
[1759371121195,7.71,222.14,222.08,1.73132198]
[1759371122498,7.71,222.1,222.02,1.73132198]
[1759371122698,9.44132198,222.1,222.02,1.73132198]
[1759371122997,7.71,222.1,222.02,1.73132198]
[1759371123195,9.44132198,222.1,222.02,1.73132198]
[1759371124092,7.71,222.1,222.04,9.44132198]
[1759371125094,7.71,222.1,222.04,7.71]
[1759371125294,7.71,222.1,222.04,9.44132198]
[1759371126098,9.44132198,222.1,222.04,9.44132198]
[1759371126297,7.71,222.1,222.04,7.71]
[1759371126503,7.71,222.14,222.04,7.71]
[1759371127296,2.69781641,222.19,222.07,7.71]
[1759371127496,7.71,222.18,222.07,7.71]
[1759371127699,5.87851055,222.2,222.09,2.69781641]
[1759371127894,7.71,222.22,222.13,7.71]
[1759371128494,10.40781641,222.26,222.16,4.049]
[1759371128696,7.71,222.26,222.17,7.71]
[1759371129605,7.71,222.26,222.18,4.0487]
[1759371129805,2.69781641,222.3,222.18,4.0487]
[1759371129806,2.69781641,222.3,222.19,7.71]
[1759371130001,7.71,222.31,222.19,7.71]
[1759371130208,7.71,222.28,222.19,7.71]
[1759371131105,2.69781641,222.26,222.15,7.71]
[1759371131306,7.71,222.25,222.15,7.71]
[1759371132711,4.0477,222.24,222.15,7.71]
[1759371132904,7.71,222.25,222.15,7.71]
[1759371133301,4.0479,222.23,222.15,7.71]
[1759371134011,7.71,222.25,222.15,7.71]
[1759371134810,4.0477,222.24,222.15,7.71]
[1759371135206,7.71,222.25,222.15,7.71]
[1759371136010,7.71,222.25,222.16,2.69781641]
[1759371136209,7.71,222.25,222.17,7.71]
[1759371139214,4.0476,222.24,222.17,7.71]
[1759371139916,4.048,222.22,222.1,4.05]
[1759371140111,11.758,222.22,222.12,2.69781641]
[1759371140310,11.758,222.22,222.13,7.71]
[1759371140906,7.71,222.29,222.16,7.71]
[1759371142015,7.71,222.29,222.19,7.34]
[1759371142915,4.0471,222.27,222.19,7.34]
[1759371145117,7.71,222.29,222.19,7.34]
[1759371146416,7.71,222.29,222.18,2.69781641]
[1759371146718,5.0048632,222.39,222.22,7.84]
[1759371146719,7.88,222.34,222.22,7.84]
[1759371146917,7.88,222.34,222.24,2.69781641]
[1759371147117,7.88,222.34,222.25,7.84]
[1759371147317,3.08649602,222.37,222.28,7.84]
[1759371147516,7.88,222.38,222.28,7.84]
[1759371147913,2.69781641,222.4,222.21,24.44]
[1759371147914,7.88,222.35,222.21,24.44]
[1759371148118,7.88,222.34,222.21,10.53781641]
[1759371148321,7.88,222.34,222.22,7.84]
[1759371148720,4.0461,222.33,222.22,7.84]
[1759371148927,4.0461,222.33,222.25,7.84]
[1759371153021,7.88,222.34,222.25,7.84]
[1759371153628,7.88,222.4,222.31,2.69781641]
[1759371153925,62.908,222.44,222.32,7.84]
[1759371153926,10.57781641,222.44,222.32,7.84]
[1759371154322,7.88,222.44,222.35,7.84]
[1759371156324,7.88,222.44,222.36,2.69781641]
[1759371156630,11.9241,222.44,222.36,2.69781641]
[1759371157425,7.88,222.44,222.36,2.69781641]
[1759371158928,7.88,222.52,222.42,7.84]
[1759371159329,10.57781641,222.52,222.42,7.84]
[1759371159534,14.62041641,222.52,222.42,7.84]
[1759371159733,11.9226,222.52,222.42,7.84]
[1759371160036,7.88,222.52,222.42,7.84]
[1759371160426,7.88,222.52,222.44,2.69781641]
[1759371163529,4.0427,222.51,222.44,2.69781641]
[1759371163933,7.88,222.52,222.42,7.84]
[1759371165133,7.88,222.52,222.42,10.53781641]
[1759371165431,11.9226,222.52,222.42,10.53781641]
[1759371165638,11.9226,222.52,222.28,76.4903]
[1759371165639,7.88,222.5,222.37,7.84]
[1759371165832,7.88,222.5,222.39,2.69781641]
[1759371166141,4.0434,222.48,222.4,2.69781641]
[1759371166438,4.0434,222.48,222.4,10.53781641]
[1759371166737,4.0436,222.46,222.4,7.84]
[1759371166927,7.88,222.47,222.4,7.84]
[1759371173545,11.9235,222.47,222.35,7.84]
[1759371173839,10.57781641,222.47,222.35,7.84]
[1759371174435,7.77,222.42,222.35,7.84]
[1759371175037,2.69781641,222.44,222.32,13.26614492]
[1759371175038,4.0449,222.39,222.32,13.26614492]
[1759371175234,11.8149,222.39,222.31,13.707192]
[1759371177832,7.77,222.34,222.26,7.73]
[1759371180337,7.77,222.34,222.26,10.42781641]
[1759371181539,7.77,222.34,222.26,14.47501641]
[1759371181736,7.77,222.34,222.18,327.46]
[1759371181939,7.77,222.31,222.19,7.73]
[1759371182247,7.77,222.31,222.2,4.0483]
[1759371183042,7.77,222.31,222.2,17.72775616]
[1759371183451,7.77,222.31,222.19,7.73]
[1759371183746,7.77,222.29,222.19,119.41]
[1759371184146,7.77,222.29,222.19,123.4584]
[1759371185548,7.77,222.29,222.21,4.0481]
[1759371185752,7.77,222.29,222.22,7.73]
[1759371186748,7.77,222.34,222.24,7.73]
[1759371186957,7.77,222.4,222.3,7.73]
[1759371187247,7.77,222.4,222.31,2.69781641]
[1759371187444,2.69781641,222.38,222.21,7.73]
[1759371187651,2.69781641,222.38,222.22,114.37781641]
[1759371187652,7.77,222.37,222.22,114.37781641]
[1759371187848,7.77,222.37,222.23,7.73]
[1759371188243,1.7230214,222.33,222.25,1.7230214]
[1759371189054,5.7690214,222.33,222.25,1.7230214]
[1759371190145,1.7230214,222.33,222.26,4.0472]
[1759371190343,7.77,222.34,222.27,1.7230214]
[1759371190753,7.77,222.34,222.29,1.7230214]
[1759371191047,7.77,222.34,222.29,9.4530214]
[1759371191651,1.7230214,222.32,222.24,1.7230214]
[1759371191855,1.7230214,222.3,222.21,1.7230214]
[1759371192555,7.77,222.29,222.21,1.7230214]
[1759371193554,1.7230214,222.28,222.21,1.7230214]
[1759371193849,1.7230214,222.26,222.14,7.73]
[1759371194157,7.77,222.25,222.16,1.7230214]
[1759371194355,7.77,222.25,222.15,4.0492]
[1759371194655,7.77,222.29,222.17,7.73]
[1759371195156,7.77,222.29,222.18,4.0487]
[1759371195751,4.0469,222.28,222.18,4.0487]
[1759371195952,7.77,222.29,222.18,4.0487]
[1759371196154,7.77,222.29,222.17,7.73]
[1759371196349,7.77,222.24,222.11,111.68]
[1759371196545,7.77,222.24,222.12,7.73]
[1759371197457,7.77,222.24,222.13,111.68]
[1759371197661,7.77,222.24,222.14,4.0494]
[1759371198456,7.77,222.24,222.14,17.64211126]
[1759371199151,7.77,222.22,222.13,111.68]
[1759371199556,7.77,222.22,222.14,7.73]
[1759371199854,7.77,222.3,222.17,7.73]
[1759371201753,62.9506,222.29,222.14,13.30540781]
[1759371201950,7.35,222.28,222.13,123.15557474]
[1759371202352,7.35,222.28,222.16,11.2789]
[1759371202546,7.35,222.29,222.16,11.2789]
[1759371202751,4.24557474,222.3,222.16,11.2789]
[1759371203656,7.74,222.26,222.16,11.2789]
[1759371204948,7.74,222.24,222.16,7.23]
[1759371207558,7.74,222.24,222.17,4.0489]
[1759371208156,7.74,222.24,222.16,7.23]
[1759371208353,7.74,222.27,222.13,115.7295]
[1759371208556,62.9543,222.28,222.13,115.7295]
[1759371208759,67.20437474,222.26,222.13,111.68]
[1759371209157,11.7875,222.25,222.14,7.94]
[1759371210560,11.7875,222.25,222.16,4.0491]
[1759371211461,7.74,222.25,222.18,4.0487]
[1759371211660,7.74,222.25,222.13,111.68]
[1759371211851,7.74,222.25,222.13,119.62]
[1759371212258,7.74,222.25,222.15,4.0492]
[1759371213561,4.0476,222.24,222.15,4.0492]
[1759371214662,7.74,222.31,222.18,7.94]
[1759371215059,4.24557474,222.3,222.18,7.94]
[1759371215259,4.0471,222.27,222.18,11.9886]
[1759371215769,7.74,222.26,222.18,11.9886]
[1759371216367,7.74,222.26,222.18,13.71281221]
[1759371216561,9.46421221,222.26,222.18,11.9886]
[1759371216763,9.46421221,222.26,222.18,9.66421221]
[1759371217666,13.51161221,222.26,222.18,9.66421221]
[1759371217867,13.51161221,222.26,222.18,13.71291221]
[1759371218364,9.46421221,222.26,222.18,13.71291221]
[1759371221965,4.0467,222.29,222.2,4.0483]
[1759371222169,1.72421221,222.28,222.21,7.94]
[1759371223660,7.16136311,222.29,222.17,1.72421221]
[1759371223661,7.74,222.25,222.17,1.72421221]
[1759371224363,7.74,222.25,222.18,4.0487]
[1759371224763,7.74,222.25,222.19,9.66421221]
[1759371225564,7.74,222.25,222.19,13.71261221]
[1759371227363,7.74,222.25,222.21,4.0482]
[1759371227568,1.72421221,222.28,222.21,4.0482]
[1759371228463,1.72421221,222.28,222.21,5.77241221]
[1759371230173,7.74,222.27,222.21,1.72421221]
[1759371230376,7.74,222.27,222.19,9.66421221]
[1759371231769,11.7873,222.27,222.19,9.66421221]
[1759371232374,7.74,222.27,222.19,9.66421221]
[1759371232767,7.74,222.27,222.21,1.72421221]
[1759371233070,7.74,222.27,222.22,4.048]
[1759371233268,9.46421221,222.31,222.23,9.66421221]
[1759371233468,12.58701462,222.31,222.23,9.66421221]
[1759371234269,9.46421221,222.31,222.23,9.66421221]
[1759371234871,7.74,222.31,222.23,9.66421221]
[1759371235073,1.72421221,222.3,222.23,9.66421221]
[1759371235369,4.84873265,222.3,222.23,9.66421221]
[1759371235762,3.12452044,222.3,222.24,4.0477]
[1759371235975,1.72421221,222.3,222.23,7.94]
[1759371236170,1.72421221,222.26,222.19,1.72421221]
[1759371236367,9.66421221,222.26,222.19,1.72421221]
[1759371236767,7.94,222.23,222.15,1.72421221]
[1759371236963,1.72421221,222.22,222.15,1.72421221]
[1759371237670,1.72421221,222.2,222.14,20.78]
[1759371237875,9.66421221,222.2,222.14,20.78]
[1759371239471,7.94,222.2,222.14,12.88]
[1759371239772,1.72421221,222.19,222.14,12.88]
[1759371239974,3.12965171,222.21,222.16,7.9]
[1759371239975,1.72421221,222.21,222.16,7.9]
[1759371240269,7.94,222.2,222.16,7.9]
[1759371240771,1.72421221,222.21,222.14,12.88]
[1759371241674,1.72421221,222.19,222.14,12.88]
[1759371242071,7.94,222.18,222.14,12.88]
[1759371242673,5.77281221,222.19,222.14,12.88]
[1759371243274,7.94,222.18,222.14,12.88]
[1759371243678,5.77281221,222.19,222.14,12.88]
[1759371243874,7.94,222.18,222.14,12.88]
[1759371244079,9.66421221,222.15,222.14,12.88]
[1759371244476,9.66421221,222.15,222.07,9.62421221]
[1759371245679,13.71351221,222.15,222.07,9.62421221]
[1759371246274,9.66421221,222.15,222.07,9.62421221]
[1759371247176,9.66421221,222.15,222.09,1.72421221]
[1759371247378,1.72421221,222.18,222.1,7.9]
[1759371248281,7.94,222.19,222.11,7.9]
[1759371250481,7.94,222.19,222.11,11.9499]
[1759371250880,7.94,222.19,222.11,7.9]
[1759371252379,4.0488,222.18,222.08,4.0505]
[1759371252579,7.94,222.17,222.08,4.0505]
[1759371253290,7.94,222.15,222.06,0.19653]
[1759371254580,4.0495,222.14,222.06,0.19653]
[1759371254889,7.94,222.15,222.06,8.09653]
[1759371255283,2.69561251,222.14,222.06,8.09653]
[1759371256689,6.74511251,222.14,222.06,8.09653]
[1759371259483,11.9899,222.12,222.06,8.09653]
[1759371259687,11.9899,222.12,222.06,0.19653]
[1759371259890,7.94,222.12,222.06,0.19653]
[1759371260279,2.69561251,222.14,222.06,0.19653]
[1759371260280,4.0502,222.1,222.06,0.19653]
[1759371260483,62.9849,222.17,222.06,0.19653]
[1759371260484,7.94,222.09,222.06,0.19653]
[1759371260792,7.94,222.11,222.06,8.09653]
[1759371260988,7.94,222.13,222.06,8.09653]
[1759371261392,4.0499,222.12,222.06,8.09653]
[1759371265193,7.24,222.09,222.06,0.19653]
[1759371265790,4.0502,222.1,222.06,0.19653]
[1759371265990,7.24,222.09,222.06,0.19653]
[1759371266386,4.0502,222.1,222.06,0.19653]
[1759371266692,7.24,222.07,222.06,0.19653]
[1759371276098,7.24,222.1,222.06,7.52653]
[1759371276295,2.69561251,222.15,222.07,7.33]
[1759371276599,7.24,222.16,222.07,10.02561251]
[1759371276897,7.24,222.16,222.08,7.33]
[1759371277100,7.24,222.16,222.09,4.0504]
[1759371277496,118.82,222.22,222.08,7.33]
[1759371277998,7.24,222.22,222.14,7.33]
[1759371278694,7.24,222.22,222.14,11.3793]
[1759371279705,11.2881,222.22,222.14,7.33]
[1759371279905,9.93561251,222.22,222.07,7.33]
[1759371280107,9.93561251,222.22,222.08,7.33]
[1759371280502,7.24,222.19,222.1,4.0502]
[1759371281004,125.54331251,222.24,222.14,11.3795]
[1759371281205,7.24,222.22,222.14,7.33]
[1759371283001,3.10176925,222.23,222.14,7.33]
[1759371283201,3.10176925,222.23,222.15,4.0492]
[1759371284812,10.34176925,222.24,222.15,4.0492]
[1759371285810,7.24,222.22,222.14,7.33]
[1759371286009,7.24,222.22,222.11,4.0499]
[1759371286212,7.24,222.19,222.11,4.0499]
[1759371287111,4.048,222.22,222.14,7.33]
[1759371289910,4.048,222.22,222.15,12.87]
[1759371290310,7.24,222.23,222.15,16.9193]
[1759371290705,11.2879,222.23,222.15,12.87]
[1759371291723,7.24,222.23,222.16,7.33]
[1759371293621,4.048,222.22,222.16,7.33]
[1759371294411,62.9456,222.31,222.16,7.33]
[1759371294618,8.01,222.31,222.22,8.0]
[1759371295723,12.0564,222.31,222.22,8.0]
[1759371297220,8.01,222.31,222.23,2.69561251]
[1759371297821,4.0466,222.3,222.22,8.0]
[1759371299120,8.01,222.35,222.25,8.0]
[1759371300229,62.9311,222.36,222.23,2.69561251]
[1759371300230,4.0466,222.31,222.23,2.69561251]
[1759371300422,65.62671251,222.36,222.06,63.0153]
[1759371300423,8.01,222.3,222.21,8.0]
[1759371301428,12.0573,222.26,222.19,2.69561251]
[1759371302829,8.01,222.26,222.19,2.69561251]
[1759371303029,62.9323,222.36,222.19,2.69561251]
[1759371303030,8.01,222.33,222.26,8.0]
[1759371303231,8.01,222.38,222.29,8.0]
[1759371303430,93.44,222.42,222.33,4.046]
[1759371303629,93.44,222.42,222.34,2.69561251]
[1759371304330,8.01,222.47,222.35,12.0456]
[1759371304631,8.01,222.47,222.34,2.69561251]
[1759371304632,8.01,222.47,222.36,8.0]
[1759371304831,8.01,222.47,222.38,8.0]
[1759371307132,70.9104,222.47,222.38,8.0]
[1759371307328,70.9182,222.44,222.31,8.0]
[1759371307535,62.9111,222.43,222.31,8.0]
[1759371308634,4.0447,222.41,222.31,8.0]
[1759371310335,5.7667251,222.41,222.31,9.7220251]
[1759371310532,4.0447,222.41,222.31,9.7220251]
[1759371310837,5.7667251,222.41,222.31,9.7220251]
[1759371312637,4.0447,222.41,222.31,9.7220251]
[1759371312833,5.7667251,222.41,222.31,9.7220251]
[1759371314239,13.7767251,222.41,222.31,9.7220251]
[1759371314541,8.01,222.46,222.35,8.0]
[1759371314839,9.7320251,222.43,222.35,8.0]
[1759371315440,9.7320251,222.43,222.36,12.87]
[1759371315640,4.0444,222.42,222.36,12.87]
[1759371316032,8.01,222.5,222.39,8.0]
[1759371316339,8.01,222.5,222.42,8.0]
[1759371316539,8.01,222.5,222.44,1.7220251]
[1759371318241,1.7220251,222.46,222.37,44.5620251]
[1759371318438,1.7220251,222.44,222.37,42.84]
[1759371318637,9.7320251,222.42,222.36,12.87]
[1759371319041,9.7320251,222.42,222.17,62.9818]
[1759371319042,8.01,222.37,222.27,1.7220251]
[1759371319235,1.7220251,222.33,222.25,9.7220251]
[1759371319433,1.7220251,222.33,222.26,1.7220251]
[1759371320042,1.7220251,222.35,222.26,1.7220251]
[1759371321135,1.7220251,222.35,222.28,1.7220251]
[1759371321341,1.7220251,222.39,222.3,1.7220251]
[1759371321540,1.7220251,222.39,222.32,1.7220251]
[1759371321741,4.0451,222.38,222.32,1.7220251]
[1759371322040,1.7220251,222.37,222.29,7.37]
[1759371322346,4.0455,222.36,222.29,7.37]
[1759371322546,7.52,222.36,222.24,11.4176]
[1759371323649,4.0459,222.34,222.24,11.4176]
[1759371323942,4.0459,222.34,222.24,7.37]
[1759371326850,7.52,222.36,222.25,4.0474]
[1759371327052,7.52,222.36,222.26,7.23]
[1759371327451,4.0457,222.35,222.26,7.23]
[1759371327752,7.52,222.36,222.26,7.23]
[1759371328349,4.0461,222.33,222.26,7.23]
[1759371329451,7.52,222.36,222.26,7.23]
[1759371330257,4.0457,222.35,222.26,7.23]
[1759371331360,7.52,222.36,222.26,7.23]
[1759371333461,4.0459,222.34,222.26,7.23]
[1759371333655,7.94,222.33,222.26,7.23]
[1759371334156,4.0462,222.32,222.26,7.23]
[1759371334459,4.0462,222.32,222.2,13.54992096]
[1759371334460,4.0462,222.32,222.21,7.23]
[1759371335148,4.0462,222.32,222.22,4.048]
[1759371335360,4.0462,222.32,222.23,7.23]
[1759371338760,7.94,222.29,222.19,7.23]
[1759371339661,4.0473,222.26,222.19,7.23]
[1759371340060,7.94,222.29,222.19,7.23]
[1759371340261,4.0471,222.27,222.19,7.23]
[1759371343066,7.94,222.29,222.19,7.23]
[1759371343067,7.94,222.26,222.19,7.23]
[1759371343669,7.94,222.26,222.19,11.2784]
[1759371344273,7.94,222.26,222.19,13.00249969]
[1759371344866,9.66409969,222.23,222.18,68.99]
[1759371345169,1.72409969,222.27,222.19,8.95409969]
[1759371348167,1.72409969,222.25,222.19,7.23]
[1759371349170,5.77169969,222.25,222.19,7.23]
[1759371350173,1.72409969,222.27,222.19,8.95409969]
[1759371350374,11.987,222.28,222.21,1.72409969]
[1759371350567,7.94,222.28,222.21,1.72409969]
[1759371350775,5.0048632,222.4,222.13,13.80030357]
[1759371350776,7.94,222.38,222.28,7.23]
[1759371350974,7.94,222.38,222.33,8.95409969]
[1759371351174,4.0449,222.4,222.33,1.72409969]
[1759371351768,1.72409969,222.37,222.29,1.72409969]
[1759371351970,7.94,222.38,222.29,1.72409969]
[1759371352274,9.66409969,222.38,222.29,1.72409969]
[1759371352675,7.94,222.38,222.29,1.72409969]
[1759371352875,1.72409969,222.37,222.29,1.72409969]
[1759371354272,7.94,222.38,222.31,1.72409969]
[1759371354474,11.5245,222.42,222.33,1.72409969]
[1759371354875,13.24859969,222.42,222.32,7.48]
[1759371355177,5.76889969,222.4,222.32,9.20409969]
[1759371355972,7.48,222.5,222.36,1.72409969]
[1759371356177,7.48,222.5,222.4,1.72409969]
[1759371356374,9.20409969,222.5,222.42,1.72409969]
[1759371356579,1.72409969,222.46,222.38,1.72409969]
[1759371356778,1.72409969,222.44,222.36,1.72409969]
[1759371357886,1.72409969,222.42,222.36,1.72409969]
[1759371359378,4.0446,222.41,222.35,1.72409969]
[1759371359577,4.0446,222.41,222.34,9.20409969]
[1759371359784,1.72409969,222.4,222.34,7.48]
[1759371360385,4.0446,222.41,222.34,9.20409969]
[1759371360587,1.72409969,222.4,222.34,7.48]
[1759371361386,7.48,222.42,222.35,1.72409969]
[1759371362692,1.72409969,222.41,222.35,1.72409969]
[1759371363289,9.20409969,222.42,222.35,1.72409969]
[1759371363692,1.72409969,222.38,222.3,9.20409969]
[1759371364583,4.0453,222.37,222.28,327.4]
[1759371364787,9.20409969,222.36,222.29,1.72409969]
[1759371365489,9.20409969,222.36,222.28,334.88]
[1759371365690,9.20409969,222.36,222.28,9.20409969]
[1759371366282,7.48,222.36,222.28,7.48]
[1759371368984,7.48,222.36,222.28,11.5269]
[1759371370793,7.48,222.36,222.28,7.48]
[1759371371190,7.48,222.39,222.27,0.22797]
[1759371371395,10.55610011,222.39,222.27,0.22797]
[1759371371892,11.5259,222.34,222.27,0.22797]
[1759371372091,7.48,222.34,222.27,0.22797]
[1759371372292,62.8912,222.5,222.28,7.48]
[1759371372293,7.48,222.39,222.28,7.48]
[1759371372796,7.48,222.39,222.29,4.0466]
[1759371373590,7.48,222.39,222.31,4.0464]
[1759371374092,10.55598682,222.43,222.32,7.48]
[1759371374294,7.48,222.43,222.32,7.48]
[1759371375187,11.5248,222.4,222.32,7.48]
[1759371376598,4.0452,222.38,222.28,4.0469]
[1759371376796,7.48,222.37,222.28,4.0469]
[1759371380190,11.5245,222.42,222.31,7.48]
[1759371380701,7.48,222.42,222.31,7.48]
[1759371381599,4.0448,222.4,222.31,7.48]
[1759371382597,7.73,222.39,222.31,7.48]
[1759371383498,7.73,222.39,222.27,7.72797]
[1759371383800,11.7751,222.39,222.27,7.72797]
[1759371383992,7.73,222.39,222.27,7.72797]
[1759371384299,4.0459,222.34,222.27,0.22797]
[1759371384490,7.39,222.33,222.27,0.22797]
[1759371384891,7.39,222.31,222.27,0.22797]
[1759371385793,4.0463,222.32,222.27,0.22797]
[1759371385794,70.3323,222.32,222.27,0.22797]
[1759371386192,2.69383551,222.31,222.27,0.22797]
[1759371386388,7.39,222.3,222.27,0.22797]
[1759371386594,14.13073551,222.28,222.27,7e-05]
[1759371387590,7.39,222.24,222.17,7.44]
[1759371387792,62.9538,222.28,222.17,7.44]
[1759371387992,7.39,222.27,222.17,7.44]
[1759371388193,4.0477,222.24,222.13,14.18333551]
[1759371388399,2.69383551,222.26,222.13,7.44]
[1759371388400,7.39,222.23,222.13,7.44]
[1759371389603,4.048,222.22,222.13,7.44]
[1759371389797,7.39,222.21,222.09,2.69383551]
[1759371389993,7.39,222.21,222.09,10.13383551]
[1759371390398,11.4383,222.21,222.09,10.13383551]
[1759371390800,11.4383,222.21,222.09,14.18413551]
[1759371393804,4.0483,222.21,222.09,10.13383551]
[1759371394108,7.39,222.2,222.09,10.13383551]
[1759371395810,7.39,222.2,222.1,4.0502]
[1759371398611,10.08383551,222.28,222.15,7.44]
[1759371398814,10.08383551,222.28,222.16,2.69383551]
[1759371400109,7.39,222.28,222.17,7.44]
[1759371400310,7.39,222.28,222.16,2.69383551]
[1759371400311,7.39,222.32,222.2,7.44]
[1759371400509,7.39,222.32,222.23,7.44]
[1759371401609,334.71,222.37,222.26,7.44]
[1759371402009,7.39,222.37,222.28,2.69383551]
[1759371403108,7.39,222.37,222.29,11.4868]
[1759371403714,7.39,222.37,222.28,2.69383551]
[1759371404218,7.39,222.37,222.26,4.0472]
[1759371404624,11.4354,222.37,222.25,10.13383551]
[1759371404916,2.69383551,222.35,222.25,7.44]
[1759371405124,7.39,222.34,222.25,7.44]
[1759371406716,62.9117,222.43,222.25,7.44]
[1759371406717,2.69383551,222.39,222.25,7.44]
[1759371407020,7.39,222.39,222.28,7.44]
[1759371407820,7.39,222.39,222.29,7.44]
[1759371409311,11.435,222.39,222.29,7.44]
[1759371409512,7.39,222.39,222.25,7.44]
[1759371410216,7.39,222.39,222.29,7.44]